[Event "Croatian-ch Youth U15 2022"]
[Site "Trogir"]
[Date "2022.06.23"]
[Round "3.7"]
[White "Franc, Borna"]
[Black "Klanac, Lovre"]
[Result "1/2-1/2"]
[ECO "B33"]
[WhiteElo "2032"]
[BlackElo "1624"]
[Annotator "TA"]
[PlyCount "60"]
[EventDate "2022.06.22"]
[EventType "swiss"]
[EventCountry "CRO"]
[SourceTitle "playchess.com"]
[Source "ChessBase"]
[SourceQuality "1"]
[TimeControl "5400+30"]

{[%evp 18,60,-19,-29,18,-30,-31,-38,-31,-36,-19,-41,-16,-17,-16,-22,-20,-17,-23,-26,-6,0,4,-7,0,-9,0,0,0,0,0,0,0,-12,14,8,0,-11,-13,-9,-18,-10,-22,-19,-25]} 1. e4 {[%emt 0:04:00]} c5 {[%emt 0:00:06]} 2. Nf3 {[%emt 0:00:03]} Nc6 {[%emt 0:00:06]} 3. d4 {[%emt 0:00:07]} cxd4 {[%emt 0:00:07]} 4. Nxd4 {[%emt 0:00:03]} Nf6 {[%emt 0:00:09]} 5. Nc3 {[%emt 0:00:16]} e5 {[%emt 0:00:13]} 6. Nb3 {[%emt 0:02:02]} Bb4 {[%emt 0:01:34]} 7. Bd3 {[%emt 0:00:18]} d6 {[%emt 0:01:35]} 8. O-O {[%emt 0:00:22]} O-O {[%emt 0:02:19]} 9. Bg5 {[%emt 0:01:09]} Bxc3 {[%emt 0:04:01]} 10. bxc3 {[%emt 0:00:31] [#]} Bd7 $146 {[%emt 0:03:18] B33: Sicilian: Pelikan and Sveshnikov Variations.} (10... h6 $142 11. Bh4 g5) ({Predecessor:} 10... h6 11. Bh4 Be6 12. Qf3 g5 13. Bg3 Kg7 14. Qe3 Qb6 15. Qe2 Rfe8 16. Nd2 d5 17. exd5 Bxd5 18. Ne4 Bxe4 19. Bxe4 {1-0 (27) Nouri,A (2296)-Kaufman,R (2255) Chess.com INT 2020}) 11. Kh1 {[%emt 0:00:40]} (11. Qf3 $142) 11... h6 $11 {[%emt 0:06:32]} 12. Bh4 {[%emt 0:01:37]} g5 {[%emt 0:05:11] Black is slightly better.} 13. Bg3 {[%emt 0:00:03]} Ne7 {[%emt 0:00:11]} 14. Qd2 {[%emt 0:09:25]} Ng6 {[%emt 0:01:39]} 15. c4 {[%emt 0:00:58]} Qc7 {[%emt 0:02:00]} 16. f3 {[%emt 0:05:23]} Be6 {[%emt 0:03:12]} 17. Bf2 {[%emt 0:00:34]} b6 {[%emt 0:01:27]} 18. Qb4 {[%emt 0:02:34]} Rac8 {[%emt 0:02:08][%cal Re6c4]} 19. Nd2 {[%emt 0:01:37][%cal Bb3d2,Bd2f1,Bf1e3][%mdl 32] The position is equal.} Nd7 {[%emt 0:02:13]} 20. Rfd1 {[%emt 0:08:42]} Nc5 {[%emt 0:08:19]} 21. Nf1 {[%emt 0:08:11]} Ne7 {[%emt 0:04:22]} 22. Ne3 {[%emt 0:02:39]} f5 {[%emt 0:01:03]} 23. exf5 {[%emt 0:01:22]} Nxf5 {[%emt 0:00:48]} 24. Bxf5 {[%emt 0:08:28]} Bxf5 {[%emt 0:00:10]} 25. Qd2 {[%emt 0:02:58]} Rcd8 {[%emt 0:08:29]} 26. Nxf5 {[%emt 0:05:51]} Rxf5 {[%emt 0:00:10]} 27. Qd5+ {[%emt 0:00:01]} Qf7 {[%emt 0:08:44]} 28. Bxc5 {[%emt 0:00:51]} Qxd5 {[%emt 0:01:28]} 29. Rxd5 {[%emt 0:00:04]} bxc5 {[%emt 0:00:10]} 30. Rad1 {[%emt 0:00:02]} Rf4 {[%emt 0:00:13] Weighted Error Value: White=0.05 (flawless) /Black=0.08 (flawless)} 1/2-1/2

[Event "Croatian-ch Youth U15 2022"]
[Site "Trogir"]
[Date "2022.06.23"]
[Round "3.8"]
[White "Djuric, Leon"]
[Black "Jakovic, Roko"]
[Result "1/2-1/2"]
[ECO "E01"]
[WhiteElo "1475"]
[BlackElo "1944"]
[Annotator "TA"]
[PlyCount "127"]
[EventDate "2022.06.22"]
[EventType "swiss"]
[EventCountry "CRO"]
[SourceTitle "playchess.com"]
[Source "ChessBase"]
[SourceQuality "1"]
[TimeControl "5400+30"]

{[%evp 25,127,8,1,0,2,-12,-20,-71,-62,-72,-72,-52,-52,-53,-55,-56,-56,-47,-32,-192,-3,-4,0,0,15,0,22,0,27,12,15,-56,-58,-72,-74,-124,-118,-125,-119,-246,-132,-128,-31,-41,-30,-58,-56,-50,0,0,0,-5,-8,-6,-4,-4,-4,-4,-4,-4,-6,-6,0,0,0,0,0,0,0,0,0,0,0,0,0,0,0,0,0,0,0,0,5,5,5,0,0,0,0,0,0,0,0,0,0,0,0,0,0,0,0,0,0,0]} 1. d4 {[%emt 0:00:02]} d5 {[%emt 0:00:07]} 2. c4 {[%emt 0:00:04]} c6 {[%emt 0:00:11]} 3. Nf3 {[%emt 0:01:11]} Nf6 {[%emt 0:00:06]} 4. Qc2 {[%emt 0:00:57]} e6 {[%emt 0:04:41]} 5. g3 {[%emt 0:01:09]} Bd6 {[%emt 0:01:38]} 6. Bg2 {[%emt 0:02:52]} O-O {[%emt 0:02:12]} 7. O-O {[%emt 0:00:23]} Nbd7 {[%emt 0:02:10]} 8. Nbd2 {[%emt 0:03:07]} Re8 {[%emt 0:07:02]} 9. e4 {[%emt 0:01:12]} Nxe4 {[%emt 0:03:35]} 10. Nxe4 {[%emt 0:00:11]} dxe4 {[%emt 0:00:06]} 11. Qxe4 {[%emt 0:00:09]} e5 {[%emt 0:08:07]} 12. Qc2 {[%emt 0:07:42]} exd4 {[%emt 0:07:32]} 13. Nxd4 {[%emt 0:01:27]} Nf6 {[%emt 0:00:53][%cal Od6g3]} 14. Rd1 {[%emt 0:08:52][%cal Od4c6] [#] E01: Catalan: Early deviations.} Qc7 $146 {[%emt 0:04:03]} ({Predecessor:} 14... Bg4 15. Bf3 Qc7 16. Bg5 Bxf3 17. Nxf3 Ne4 18. Be3 c5 19. Ng5 Nxg5 20. Bxg5 Be5 21. Be3 Rad8 {½-½ (69) Rudenkov,S (1852)-Baranovsky,S (2057) Myrhorod 2010}) 15. b3 {[%emt 0:08:13]} Bg4 {[%emt 0:02:15][%cal Bc8g4,Bg4h5,Bh5g6][%mdl 32]} 16. f3 {[%emt 0:02:44] [#]} (16. Bf3 $11 {keeps the balance.}) 16... Bh5 $1 $17 {[%emt 0:01:54]} 17. Bb2 {[%emt 0:04:52]} Bg6 {[%emt 0:01:54]} 18. Qf2 {[%emt 0:05:59]} Bc5 {[%emt 0:03:20]} 19. a3 {[%emt 0:00:42]} a5 {[%emt 0:00:51] Against b4} 20. Bc3 {[%emt 0:03:32]} Qe7 {[%emt 0:02:57]} 21. Qb2 $1 {[%emt 0:03:38]} Qe2 {[%emt 0:06:13]} 22. Rd2 {[%emt 0:02:18]} (22. Qxe2 $15 Rxe2 23. b4) 22... Qe6 $2 {[%emt 0:05:55]} (22... Qe3+ $19 23. Kh1 {[#]} Bxa3 $1 {[%mdl 512]} 24. Qxa3 Qxc3) 23. Kh1 $132 {[%emt 0:01:42][%mdl 2048] White is fighting back} Bxd4 {[%emt 0:00:57]} 24. Rxd4 {[%emt 0:00:53]} c5 {[%emt 0:07:32]} 25. Rdd1 {[%emt 0:01:31]} a4 {[%emt 0:02:03][%cal Ba5a4,Ba4a3,Ba3a2][%mdl 32]} 26. Re1 {[%emt 0:03:11]} Qb6 {[%emt 0:01:20]} 27. b4 {[%emt 0:03:58]} cxb4 {[%emt 0:00:38] ...b3 is the strong threat.} 28. axb4 {[%emt 0:00:48]} ({White should try} 28. Rxe8+ $11 Rxe8 29. Qxb4 Qxb4 30. Bxb4) 28... Rxe1+ $15 {[%emt 0:01:02]} 29. Bxe1 {[%emt 0:00:51] This bishop pair is nice.} Qe6 {[%emt 0:01:45]} 30. Qd4 {[%emt 0:05:11]} ({Better is} 30. Qd2) 30... a3 $17 {[%emt 0:01:33]} 31. Bf1 {[%emt 0:01:39]} a2 {[%emt 0:01:33]} 32. Bd3 {[%emt 0:00:33]} (32. Kg2 $17 {keeps fighting.}) 32... Nd7 {[%emt 0:04:44]} (32... Ra3 $19 33. Bc3 Bxd3 34. Qxd3 h6) 33. Bc3 {[%emt 0:00:38][%csl Gc3][%cal Rd4g7]} Qe5 {[%emt 0:02:49]} 34. Bxg6 {[%emt 0:00:51]} Qxd4 {[%emt 0:00:37]} 35. Bxh7+ {[%emt 0:00:15]} Kxh7 {[%emt 0:00:07]} 36. Bxd4 $15 {[%emt 0:00:10][%mdl 4096] Endgame KRB-KRN} Ra4 {[%emt 0:00:37]} (36... Ra3 $15) 37. Kg2 $11 {[%emt 0:02:43] The position is equal.} Nb8 {[%emt 0:03:00]} 38. Kf2 {[%emt 0:01:03]} Nc6 {[%emt 0:00:27]} 39. Bc3 {[%emt 0:00:24]} Ra3 {[%emt 0:01:43]} 40. b5 $1 {[%emt 0:01:14]} Rxc3 {[%emt 0:01:14]} 41. bxc6 {[%emt 0:00:09] KR-KR} Rc2+ {[%emt 0:00:29]} 42. Ke3 {[%emt 0:00:41]} bxc6 {[%emt 0:00:25]} 43. h4 {[%emt 0:00:40]} c5 {[%emt 0:00:33]} 44. Kd3 {[%emt 0:01:32] Against Rc3+} Rb2 {[%emt 0:01:45]} 45. Ke4 {[%emt 0:00:31]} ({Of course not} 45. Kc3 Rf2 46. Kb3 Rxf3+ 47. Ka4 Rf2 $17) 45... Rd2 {[%emt 0:00:59]} 46. Ke3 {[%emt 0:00:22]} Rb2 {[%emt 0:02:06]} 47. Ke4 {[%emt 0:00:12]} Rd2 {[%emt 0:00:26]} 48. Ke3 {[%emt 0:00:09]} Rc2 {[%emt 0:01:27] White must now prevent ...Rc3+.} 49. Kd3 {[%emt 0:00:07] Against Rc3+} Rf2 {[%emt 0:00:32]} 50. Ke4 {[%emt 0:00:12]} f5+ {[%emt 0:01:33]} 51. Kxf5 {[%emt 0:00:43]} Rxf3+ {[%emt 0:00:05]} 52. Ke5 {[%emt 0:00:20]} Ra3 {[%emt 0:01:00]} 53. g4 {[%emt 0:00:37]} Rd3 {[%emt 0:01:40]} 54. Rxa2 {[%emt 0:00:16] And now Ra4 would win.} Rd4 {[%emt 0:00:08]} 55. Rc2 {[%emt 0:00:33]} Kh6 {[%emt 0:01:13]} 56. Kf5 {[%emt 0:00:25]} g6+ {[%emt 0:00:36]} 57. Ke5 {[%emt 0:00:16]} g5 {[%emt 0:01:25]} 58. hxg5+ {[%emt 0:00:31]} Kxg5 {[%emt 0:00:09]} 59. Ra2 {[%emt 0:00:38]} Rxc4 {[%emt 0:00:36]} 60. Kd5 {[%emt 0:00:11]} Rc1 {[%emt 0:00:20]} 61. Ra4 {[%emt 0:00:07]} Rc2 {[%emt 0:00:42]} 62. Rc4 {[%emt 0:00:06]} Rxc4 {[%emt 0:00:08]} 63. Kxc4 {[%emt 0:00:05]} Kxg4 {[%emt 0:00:04]} 64. Kxc5 {[%emt 0:00:08] Weighted Error Value: White=0.17 (very precise) /Black=0.17 (very precise)} 1/2-1/2

[Event "Croatian-ch Youth U15 2022"]
[Site "Trogir"]
[Date "2022.06.23"]
[Round "3.9"]
[White "Begic, Klara"]
[Black "Zovko, Josipa"]
[Result "1-0"]
[ECO "E11"]
[WhiteElo "1727"]
[BlackElo "1419"]
[Annotator "NA RC"]
[PlyCount "75"]
[EventDate "2022.06.22"]
[EventType "swiss"]
[EventCountry "CRO"]
[SourceTitle "playchess.com"]
[Source "ChessBase"]
[SourceQuality "1"]
[TimeControl "5400+30"]

1. d4 {[%emt 0:00:02]} d5 {[%emt 0:01:06]} 2. c4 {[%emt 0:00:07]} e6 {[%emt 0:00:07]} 3. Nf3 {[%emt 0:00:07]} Nf6 {[%emt 0:00:25]} 4. g3 {[%emt 0:00:26]} Bb4+ {[%emt 0:01:59]} 5. Bd2 {[%emt 0:00:12]} Bxd2+ {[%emt 0:00:15]} 6. Nbxd2 {[%emt 0:00:08]} O-O {[%emt 0:01:50]} 7. Bg2 {[%emt 0:00:18]} Nbd7 {[%emt 0:03:07]} 8. Qc2 {[%emt 0:03:03]} Re8 {[%emt 0:05:42]} 9. O-O {[%emt 0:11:57]} c6 {[%emt 0:05:08]} 10. e4 {[%emt 0:12:46]} dxc4 {[%emt 0:11:54]} 11. Nxc4 {[%emt 0:00:56]} Nb6 {[%emt 0:01:19]} 12. b3 {[%emt 0:15:54]} a5 {[%emt 0:09:12]} 13. a4 {[%emt 0:01:06]} Qc7 {[%emt 0:05:19]} 14. Rfd1 {[%emt 0:09:21]} Nbd7 {[%emt 0:12:26]} 15. e5 {[%emt 0:04:13]} Nd5 {[%emt 0:02:33]} 16. Nd6 {[%emt 0:00:12]} Re7 {[%emt 0:01:56]} 17. Ng5 {[%emt 0:04:33]} Nf8 {[%emt 0:05:40]} 18. Bxd5 {[%emt 0:05:00]} exd5 {[%emt 0:02:20]} 19. f4 {[%emt 0:01:57]} Bg4 {[%emt 0:04:07]} 20. Rf1 {[%emt 0:05:30]} f6 {[%emt 0:04:35]} 21. Nf3 {[%emt 0:08:42]} Ne6 {[%emt 0:01:45]} 22. Qd3 {[%emt 0:01:36]} Qb6 {[%emt 0:01:40]} 23. exf6 {[%emt 0:07:49]} gxf6 {[%emt 0:04:12]} 24. Rad1 {[%emt 0:04:08]} Rf8 {[%emt 0:07:44]} 25. Kg2 {[%emt 0:02:12]} Qb4 {[%emt 0:01:47]} 26. Nf5 {[%emt 0:00:37]} Bxf5 {[%emt 0:00:07]} 27. Qxf5 {[%emt 0:00:05]} Qxb3 {[%emt 0:00:27]} 28. Rfe1 {[%emt 0:00:47]} Qb2+ {[%emt 0:01:47]} 29. Rd2 {[%emt 0:00:38]} Nxd4 {[%emt 0:01:50]} 30. Qg4+ {[%emt 0:00:33]} Rg7 {[%emt 0:00:06]} 31. Qxg7+ {[%emt 0:00:05]} Kxg7 {[%emt 0:00:04]} 32. Rxb2 {[%emt 0:00:05]} Nf5 {[%emt 0:00:58]} 33. Rxb7+ {[%emt 0:00:07]} Kg8 {[%emt 0:00:13]} 34. Rc7 {[%emt 0:00:26]} d4 {[%emt 0:00:23]} 35. Rxc6 {[%emt 0:00:20]} Rd8 {[%emt 0:02:05]} 36. Rc5 {[%emt 0:00:33]} Ne3+ {[%emt 0:00:52]} 37. Kg1 {[%emt 0:00:08]} Ng4 {[%emt 0:01:17]} 38. h3 {[%emt 0:00:17]} 1-0

[Event "Croatian-ch Youth U15 2022"]
[Site "Trogir"]
[Date "2022.06.23"]
[Round "3.10"]
[White "Buchwald, Svea"]
[Black "Karij, Petra"]
[Result "0-1"]
[ECO "C55"]
[WhiteElo "1187"]
[BlackElo "1433"]
[Annotator "NA RC"]
[PlyCount "72"]
[EventDate "2022.06.22"]
[EventType "swiss"]
[EventCountry "CRO"]
[SourceTitle "playchess.com"]
[Source "ChessBase"]
[SourceQuality "1"]
[TimeControl "5400+30"]

1. e4 {[%emt 0:00:01]} e5 {[%emt 0:00:07]} 2. Nf3 {[%emt 0:00:13]} Nc6 {[%emt 0:00:05]} 3. Bc4 {[%emt 0:00:21]} Nf6 {[%emt 0:00:05]} 4. Nc3 {[%emt 0:00:08]} Nxe4 {[%emt 0:00:23]} 5. Nxe4 {[%emt 0:00:16]} d5 {[%emt 0:00:07]} 6. Bd3 {[%emt 0:00:12]} dxe4 {[%emt 0:00:15]} 7. Bxe4 {[%emt 0:00:18]} Bd6 {[%emt 0:02:30]} 8. h3 {[%emt 0:06:24]} O-O {[%emt 0:03:18]} 9. O-O {[%emt 0:00:30]} Be6 {[%emt 0:01:01]} 10. c3 {[%emt 0:06:05]} f5 {[%emt 0:03:47]} 11. Bc2 {[%emt 0:04:24]} Qf6 {[%emt 0:04:51]} 12. Bb3 {[%emt 0:03:31]} Bf7 {[%emt 0:07:00]} 13. d3 {[%emt 0:03:56]} h6 {[%emt 0:02:13]} 14. Re1 {[%emt 0:08:50]} Rad8 {[%emt 0:03:03]} 15. Bxf7+ {[%emt 0:02:42]} Rxf7 {[%emt 0:00:48]} 16. Qb3 {[%emt 0:01:37]} b6 {[%emt 0:07:43]} 17. Qa4 {[%emt 0:04:09]} Bf8 {[%emt 0:06:20]} 18. Qc4 {[%emt 0:17:56]} Kh8 {[%emt 0:11:48]} 19. Be3 {[%emt 0:23:33]} f4 {[%emt 0:05:47]} 20. Bd2 {[%emt 0:00:14]} Rfd7 {[%emt 0:00:21]} 21. d4 {[%emt 0:02:44]} Na5 {[%emt 0:05:31]} 22. Qb5 {[%emt 0:03:20]} Rd5 {[%emt 0:04:41]} 23. dxe5 {[%emt 0:01:53]} Rxb5 {[%emt 0:05:14]} 24. exf6 {[%emt 0:00:24]} gxf6 {[%emt 0:00:13]} 25. b4 {[%emt 0:00:35]} Nb7 {[%emt 0:16:07]} 26. c4 {[%emt 0:03:16]} Rf5 {[%emt 0:04:04]} 27. g4 {[%emt 0:00:20]} fxg3 {[%emt 0:00:19]} 28. Kg2 {[%emt 0:00:50]} gxf2 {[%emt 0:00:10]} 29. Re2 {[%emt 0:00:57]} Nd6 {[%emt 0:03:02]} 30. Rc1 {[%emt 0:03:10]} f1=Q+ {[%emt 0:01:24]} 31. Rxf1 {[%emt 0:00:50]} Nxc4 {[%emt 0:00:06]} 32. Rc1 {[%emt 0:01:25]} Nxd2 {[%emt 0:00:40]} 33. Nxd2 {[%emt 0:00:27]} Bxb4 {[%emt 0:00:32]} 34. Nb3 {[%emt 0:01:08]} Rg8+ {[%emt 0:00:40]} 35. Kh2 {[%emt 0:00:21]} Bd6+ {[%emt 0:00:07]} 36. Kh1 {[%emt 0:00:12]} Rf3 {[%emt 0:00:17]} 0-1

[Event "Croatian-ch Youth U15 2022"]
[Site "Trogir"]
[Date "2022.06.23"]
[Round "3.11"]
[White "Botica, Lucija"]
[Black "Lukinovic, Laura"]
[Result "1-0"]
[ECO "B52"]
[WhiteElo "1145"]
[BlackElo "1164"]
[Annotator "NA RC"]
[PlyCount "73"]
[EventDate "2022.06.22"]
[EventType "swiss"]
[EventCountry "CRO"]
[SourceTitle "playchess.com"]
[Source "ChessBase"]
[SourceQuality "1"]
[TimeControl "5400+30"]

1. e4 {[%emt 0:00:01]} c5 {[%emt 0:00:07]} 2. Nf3 {[%emt 0:00:04]} d6 {[%emt 0:00:05]} 3. Bb5+ {[%emt 0:00:05]} Bd7 {[%emt 0:00:14]} 4. Bxd7+ {[%emt 0:00:10]} Nxd7 {[%emt 0:00:06]} 5. d4 {[%emt 0:00:07]} cxd4 {[%emt 0:00:08]} 6. Qxd4 {[%emt 0:00:10]} Ngf6 {[%emt 0:00:18]} 7. Nc3 {[%emt 0:00:12]} g6 {[%emt 0:00:30]} 8. Be3 {[%emt 0:04:49]} Bg7 {[%emt 0:04:48]} 9. O-O-O {[%emt 0:02:56]} O-O {[%emt 0:01:10]} 10. e5 {[%emt 0:09:53]} Ne8 {[%emt 0:22:57]} 11. Bf4 {[%emt 0:07:25]} Qb6 {[%emt 0:25:06]} 12. Qxb6 {[%emt 0:04:12]} Nxb6 {[%emt 0:00:07]} 13. exd6 {[%emt 0:01:16]} exd6 {[%emt 0:00:08]} 14. Bxd6 {[%emt 0:00:37]} Nxd6 {[%emt 0:00:04]} 15. Rxd6 {[%emt 0:00:09]} Rad8 {[%emt 0:00:55]} 16. Rhd1 {[%emt 0:10:11]} Rxd6 {[%emt 0:02:31]} 17. Rxd6 {[%emt 0:00:18]} Re8 {[%emt 0:00:27]} 18. Rd1 {[%emt 0:21:29]} Bxc3 {[%emt 0:06:43]} 19. bxc3 {[%emt 0:00:15]} Na4 {[%emt 0:00:07]} 20. Rd3 {[%emt 0:03:30]} Re2 {[%emt 0:01:29]} 21. Rd2 {[%emt 0:04:30]} Nxc3 {[%emt 0:00:48]} 22. Rxe2 {[%emt 0:00:30]} Nxe2+ {[%emt 0:00:03]} 23. Kd2 {[%emt 0:00:26]} Nf4 {[%emt 0:00:04]} 24. g3 {[%emt 0:00:35]} Nd5 {[%emt 0:00:09]} 25. a3 {[%emt 0:00:50]} f6 {[%emt 0:00:44]} 26. Kd3 {[%emt 0:00:21]} Kf7 {[%emt 0:00:18]} 27. c4 {[%emt 0:03:15]} Ne7 {[%emt 0:02:04]} 28. Kd4 {[%emt 0:04:15]} Nc6+ {[%emt 0:00:42]} 29. Kd5 {[%emt 0:00:37]} Ke7 {[%emt 0:00:09]} 30. Nd2 {[%emt 0:03:51]} Na5 {[%emt 0:01:53]} 31. Kc5 {[%emt 0:02:01]} Ke6 {[%emt 0:02:09]} 32. Kb5 {[%emt 0:00:57]} Nc6 {[%emt 0:00:43]} 33. Ne4 {[%emt 0:01:50]} Nd4+ {[%emt 0:05:01]} 34. Kb4 {[%emt 0:00:42]} b6 {[%emt 0:04:45]} 35. Kc3 {[%emt 0:03:25]} Ke5 {[%emt 0:00:50]} 36. Nd2 {[%emt 0:00:44]} a5 {[%emt 0:01:59]} 37. f4+ {[%emt 0:00:26]} 1-0

[Event "Croatian-ch Youth U15 2022"]
[Site "Trogir"]
[Date "2022.06.24"]
[Round "4.1"]
[White "Colev, Ivor"]
[Black "Mandaric, Fran"]
[Result "1-0"]
[ECO "B41"]
[WhiteElo "1984"]
[BlackElo "1808"]
[Annotator "TA"]
[PlyCount "65"]
[EventDate "2022.06.22"]
[EventType "swiss"]
[EventCountry "CRO"]
[SourceTitle "playchess.com"]
[Source "ChessBase"]
[SourceQuality "1"]
[TimeControl "5400+30"]

{[%evp 13,65,29,61,57,48,47,56,53,65,58,59,61,64,41,51,47,45,34,41,25,54,52,58,42,52,10,58,11,11,13,27,37,28,37,24,21,50,0,0,-90,274,254,589,577,563,460,443,435,29986,29987,29990,29991,29992,29993]} 1. e4 {[%emt 0:00:02]} c5 {[%emt 0:00:05]} 2. Nf3 {[%emt 0:00:04]} e6 {[%emt 0:00:09]} 3. d4 {[%emt 0:00:04]} cxd4 {[%emt 0:00:04]} 4. Nxd4 {[%emt 0:00:03]} a6 {[%emt 0:00:04]} 5. c4 {[%emt 0:00:03]} Qc7 {[%emt 0:00:08]} 6. a3 {[%emt 0:01:13]} Nf6 {[%emt 0:00:59]} 7. Nc3 {[%emt 0:00:05]} Be7 {[%emt 0:01:38][%cal Of6e4]} 8. Be3 {[%emt 0:00:07] B41: Sicilian: Kan Variation: 5 c4.} O-O {[%emt 0:01:29]} 9. Be2 {[%emt 0:02:23]} d6 {[%emt 0:01:42]} 10. O-O {[%emt 0:00:11] White is slightly better.} b6 {[%emt 0:03:43]} 11. b4 {[%emt 0:04:51] White is more active.} Bb7 {[%emt 0:02:48]} 12. f3 {[%emt 0:00:44]} Nbd7 {[%emt 0:02:14][%cal Ob6b5]} 13. Qb3 {[%emt 0:00:54]} Rac8 {[%emt 0:08:00][%cal Ob6b5]} 14. Rfc1 {[%emt 0:02:24] [#]} Rfd8 $146 {[%emt 0:14:23]} ({Predecessor:} 14... Qb8 15. Qd1 Rfe8 16. Qf1 Bd8 17. Qf2 Bc7 18. g3 h5 19. Rd1 h4 {0-1 (58) Getman,T (2195)-Schekachikhin,M (2370) St Petersburg 2018}) 15. a4 {[%emt 0:20:15]} Ne5 {[%emt 0:07:23][%cal Re5c4]} 16. Nd1 {[%emt 0:04:59]} Qd7 {[%emt 0:08:37]} 17. Nf2 {[%emt 0:13:34]} d5 {[%emt 0:05:27]} 18. cxd5 {[%emt 0:00:11]} exd5 {[%emt 0:01:24]} 19. f4 {[%emt 0:01:51]} Neg4 {[%emt 0:12:18]} (19... Rxc1+ $11 20. Rxc1 Nc4) 20. e5 {[%emt 0:01:14]} (20. Rxc8 $1 $14 {feels stronger.} Rxc8 21. e5 Nxe3 22. Qxe3 (22. exf6 Bxf6 23. Qxe3 Re8 $17)) 20... Nxe3 {[%emt 0:02:53]} 21. Qxe3 {[%emt 0:01:12]} (21. exf6 Rxc1+ 22. Rxc1 Bxf6 $1 23. Qxe3 Re8 $17) 21... Ne4 {[%emt 0:04:02]} 22. Bg4 {[%emt 0:03:33]} Rxc1+ {[%emt 0:00:06]} 23. Qxc1 {[%emt 0:00:20]} Qe8 {[%emt 0:00:26]} 24. Qc7 $36 {[%emt 0:02:26][%mdl 2048] White has some pressure.} Bxb4 {[%emt 0:07:49][%cal Ob4c5] And now ...Bc5! would win.} 25. Qxb7 {[%emt 0:09:19]} (25. e6 $14 Qe7 26. Rc1 (26. Qxb6 Bc5 $17) 26... fxe6 27. Nxe4 dxe4 28. Nxe6) 25... Bc5 $11 {[%emt 0:00:29]} 26. Rd1 {[%emt 0:02:53]} (26. Nc6 $1 $11 {remains equal.} Nxf2 27. Bf5) 26... Qxa4 $2 {[%emt 0:03:37][%mdl 8192] [#] This move loses the game for Black.} (26... Nxf2 $17 27. Kxf2 Qxa4) 27. e6 $1 $18 {[%emt 0:03:53]} ({Not} 27. Nxe4 dxe4 28. Kf1 Bxd4 $15) (27. Qc7 Rf8 28. Qd7 Qxd7 29. Bxd7 Nc3 $17) 27... fxe6 {[%emt 0:06:30] [#]} (27... Bxd4 $2 {[#]} 28. Qe7 $1 Bxf2+ 29. Kh1 Qxd1+ 30. Bxd1 $18) (27... Nxf2 {is more resistant.} 28. Qxf7+ Kh8) 28. Nxe6 $1 {[%emt 0:02:18][%csl Ge6][%cal Rb7g7]} Bxf2+ {[%emt 0:00:09]} (28... Qd7 29. Nxd8) 29. Kh1 {[%emt 0:00:16][%csl Ge6][%cal Rb7g7]} Qd7 {[%emt 0:00:23]} 30. Nxd8 {[%emt 0:00:42]} Qxd8 {[%emt 0:02:25]} (30... Qxb7 $18 31. Nxb7 Nc3) 31. Rxd5 {[%emt 0:04:46][%cal Rd5d8] White mates.} Qe8 {[%emt 0:00:53]} 32. Re5 {[%emt 0:01:22][%cal Re5e8]} Qd8 {[%emt 0:02:35]} 33. Qxe4 {[%emt 0:00:27] Weighted Error Value: White=0.16 (very precise) /Black=0.65} 1-0